[Event "4NCL Div 2 2024-25"]
[Site "England"]
[Date "2025.02.16"]
[Round "6.26"]
[White "Gallagher, Daniel GH"]
[Black "Cooksey, Paul S"]
[Result "1/2-1/2"]
[Annotator "ChessBase"]
[ECO "B10"]
[WhiteElo "2203"]
[BlackElo "2234"]
[PlyCount "83"]
[EventDate "2024.11.23"]
[EventType "team-tourn"]
[EventCountry "ENG"]
[SourceTitle "playchess.com"]
[Source "ChessBase"]
[SourceQuality "1"]
[TimeControl "40/6000+30:3000+30"]

1. e4 {[%emt 0:10:04]} c6 {[%emt 0:10:20]} 2. Nf3 {[%emt 0:00:07]} d5 {[%emt 0:00:07]} 3. d3 {[%emt 0:00:04]} dxe4 {[%emt 0:01:06]} 4. dxe4 {[%emt 0:00:05]} Qxd1+ {[%emt 0:00:07]} 5. Kxd1 {[%emt 0:00:03]} Nf6 {[%emt 0:00:13]} 6. Nbd2 {[%emt 0:00:06]} g6 {[%emt 0:03:28]} 7. Bd3 {[%emt 0:00:18]} Bh6 {[%emt 0:05:32]} 8. Ke2 {[%emt 0:00:23]} Bg4 {[%emt 0:03:29]} 9. a4 {[%emt 0:01:08]} Bxf3+ {[%emt 0:05:23]} 10. Kxf3 {[%emt 0:01:04]} Nbd7 {[%emt 0:07:09]} 11. b4 {[%emt 0:22:14]} O-O {[%emt 0:15:35]} 12. Ke2 {[%emt 0:05:10]} Ng4 {[%emt 0:07:09]} 13. f3 {[%emt 0:16:20]} Nge5 {[%emt 0:02:15]} 14. Bb2 {[%emt 0:05:51]} Bg7 {[%emt 0:03:43]} 15. Rhb1 {[%emt 0:00:25]} Rfd8 {[%emt 0:05:22]} 16. f4 {[%emt 0:16:28]} Nxd3 {[%emt 0:03:32]} 17. cxd3 {[%emt 0:00:05]} Nf8 {[%emt 0:00:34]} 18. Bxg7 {[%emt 0:01:22]} Kxg7 {[%emt 0:00:09]} 19. Nb3 {[%emt 0:16:28]} Ne6 {[%emt 0:02:04]} 20. Ke3 {[%emt 0:00:06]} Rd7 {[%emt 0:04:53]} 21. Nc5 {[%emt 0:00:48]} Nxc5 {[%emt 0:00:43]} 22. bxc5 {[%emt 0:00:01]} Rad8 {[%emt 0:01:41]} 23. Ra3 {[%emt 0:00:08]} e6 {[%emt 0:03:50]} 24. a5 {[%emt 0:01:46]} Rc7 {[%emt 0:05:10]} 25. Rb4 {[%emt 0:00:53]} a6 {[%emt 0:01:24]} 26. Rab3 {[%emt 0:00:07]} Rdd7 {[%emt 0:00:11]} 27. g4 {[%emt 0:01:03]} f6 {[%emt 0:01:20]} 28. h4 {[%emt 0:02:37]} h6 {[%emt 0:01:24]} 29. Rd4 {[%emt 0:03:09]} Rxd4 {[%emt 0:05:14]} 30. Kxd4 {[%emt 0:00:02]} Rd7+ {[%emt 0:00:38]} 31. Ke3 {[%emt 0:00:01]} g5 {[%emt 0:02:33]} 32. hxg5 {[%emt 0:02:04]} hxg5 {[%emt 0:00:09]} 33. f5 {[%emt 0:01:08]} exf5 {[%emt 0:02:12]} 34. gxf5 {[%emt 0:00:24]} Kf8 {[%emt 0:00:25]} 35. Kf3 {[%emt 0:01:42]} Rh7 {[%emt 0:02:43]} 36. Kg3 {[%emt 0:00:07]} Ke8 {[%emt 0:00:25]} 37. d4 {[%emt 0:01:29]} Rh4 {[%emt 0:03:25]} 38. e5 {[%emt 0:02:09]} Rxd4 {[%emt 0:00:35]} 39. exf6 {[%emt 0:00:42]} Kf7 {[%emt 0:01:02]} 40. Rxb7+ {[%emt 0:00:30]} Kxf6 {[%emt 0:00:16]} 41. Rb6 {[%emt 0:50:26]} Kxf5 {[%emt 0:50:19]} 42. Rxc6 {[%emt 0:00:30]} 1/2-1/2

[Event "4NCL Div 2 2024-25"]
[Site "England"]
[Date "2025.02.16"]
[Round "6.27"]
[White "Thompson, Ian D"]
[Black "Hill, Alistair"]
[Result "1/2-1/2"]
[Annotator "TA"]
[ECO "A34"]
[WhiteElo "2010"]
[BlackElo "2076"]
[PlyCount "109"]
[EventDate "2024.11.23"]
[EventType "team-tourn"]
[EventCountry "ENG"]
[SourceTitle "playchess.com"]
[Source "ChessBase"]
[SourceQuality "1"]
[TimeControl "40/6000+30:3000+30"]

{[%evp 20,109,11,15,20,9,13,0,42,40,58,16,43,34,96,0,0,0,2,10,4,0,0,0,0,0,0,-33,-22,-19,0,0,-6,-26,0,0,0,0,0,0,0,-2,0,0,0,0,0,0,0,0,0,0,0,0,0,0,0,0,0,0,40,17,38,19,57,52,116,83,113,46,46,2,2,2,2,2,2,2,2,2,2,2,2,0,2,0,0,0,0,0,0,0]} 1. c4 {[%emt 1:41:00]} Nf6 {[%emt 0:11:12]} 2. Nc3 {[%emt 0:00:00]} c5 {[%emt 0:00:04]} 3. g3 {[%emt 0:00:00]} d5 {[%emt 0:00:04]} 4. cxd5 {[%emt 0:00:00]} Nxd5 {[%emt 0:00:03]} 5. Bg2 {[%emt 0:00:00]} Nc7 {[%emt 0:00:04]} 6. Nf3 {[%emt 0:00:00][%cal Bg1f3,Bf3d2,Bd2c4][%mdl 32]} Nc6 {[%emt 0:00:05]} 7. O-O {[%emt 0:00:00]} e5 {[%emt 0:00:18]} 8. d3 {[%emt 0:00:00]} Be7 {[%emt 0:00:32]} 9. Nd2 {[%emt 0:00:00]} O-O {[%emt 0:02:14]} 10. Nc4 {[%emt 0:00:00]} f6 {[%emt 0:09:06]} 11. f4 {[%emt 0:00:00]} exf4 {[%emt 0:00:06] A34: Symmetrical English: 2 Nc3, lines with ...d5.} 12. Bxf4 {[%emt 0:00:00]} Kh8 {[%emt 0:07:21]} 13. Rc1 $146 {[%emt 0:00:00]} ({Predecessor:} 13. a4 Be6 14. a5 Nd5 15. a6 b6 16. Bd2 Qd7 17. Qa4 Rad8 18. Rf2 Rf7 19. Nxd5 Bxd5 20. Bxd5 Qxd5 {½-½ Gordievsky,D (2474)-Khairullin,I (2658) RUS-ch Higher League 66th 2013 (1)}) 13... Re8 {[%emt 0:11:24]} 14. Ne4 {[%emt 0:00:00]} Ne6 {[%emt 0:04:44]} 15. Ned6 {[%emt 0:00:00]} (15. Bd6 $5) 15... Rf8 {[%emt 0:06:31] Prevents Nf7+.} 16. Bxc6 {[%emt 0:00:00]} Nxf4 {[%emt 0:07:37]} (16... bxc6 $14 17. Nxc8 Qxc8) 17. Rxf4 {[%emt 0:00:00]} (17. Bxb7 Nh3+ (17... Bxb7 18. Nxb7 Nh3+ 19. Kg2 $11) 18. Kg2 Bxb7+ 19. Nxb7 (19. Kxh3 $2 Bxd6 20. e4 Bc7 $19) 19... Qd7 $14) (17. Nxb7 $16 Nh3+ 18. Kh1) 17... Bxd6 $11 {[%emt 0:04:30]} 18. Nxd6 {[%emt 0:00:00]} Qxd6 {[%emt 0:00:13]} 19. Bg2 {[%emt 0:00:00]} Be6 {[%emt 0:06:47]} 20. Qc2 {[%emt 0:00:00]} Qb6 {[%emt 0:03:15]} 21. Kh1 {[%emt 0:00:00]} (21. Qxc5 $2 Rfc8 (21... Bxa2 $2 22. Qxb6 axb6 23. Rb4 $18) 22. Qxb6 Rxc1+ 23. Kf2 axb6 $19) 21... Rac8 {[%emt 0:03:39]} ({Of course not} 21... Bxa2 $6 22. b4 $16) 22. b3 {[%emt 0:00:00]} Rfd8 {[%emt 0:14:44]} 23. Rcf1 {[%emt 0:00:00]} Rd4 {[%emt 0:04:22]} 24. Be4 {[%emt 0:00:00]} Bd5 {[%emt 0:05:13]} 25. Bxd5 {[%emt 0:00:00]} Rxd5 {[%emt 0:00:02]} 26. Rc4 {[%emt 0:00:00] Not much happening anymore} Rcd8 {[%emt 0:01:43]} 27. Rc1 {[%emt 0:00:00][%cal Rc4c5]} Qe6 {[%emt 0:06:24]} 28. Rxc5 {[%emt 0:01:09]} Rxc5 {[%emt 0:00:02]} 29. Qxc5 {[%emt 0:00:07]} Qxe2 {[%emt 0:00:07]} 30. Qxa7 {[%emt 0:00:51][%mdl 4096] Endgame KQR-KQR. White is a pawn up.} Qf3+ {[%emt 0:00:17]} 31. Kg1 {[%emt 0:00:02]} Qxd3 {[%emt 0:00:04]} 32. Re1 {[%emt 0:03:42]} Qd2 {[%emt 0:02:22]} 33. Qe3 {[%emt 0:01:44][%cal Oe3e8] [#] Qe8+! would kill now.} h5 {[%emt 0:00:40]} ({Worse is} 33... Qxa2 34. Qe8+ Rxe8 35. Rxe8#) 34. Qe2 {[%emt 0:02:13]} Qd4+ {[%emt 0:00:36]} 35. Qf2 {[%emt 0:00:01]} Kh7 {[%emt 0:00:48]} 36. Qxd4 {[%emt 0:01:40]} Rxd4 {[%emt 0:00:02] KR-KR} 37. Kf2 {[%emt 0:00:06]} Kg6 {[%emt 0:00:57]} 38. Ke3 {[%emt 0:00:35]} Rd7 {[%emt 0:00:29]} 39. Rc1 {[%emt 0:00:13]} Kg5 {[%emt 0:00:35]} 40. Rc4 {[%emt 0:00:47]} Re7+ {[%emt 0:00:31]} 41. Kf3 {[%emt 0:51:01]} Rd7 {[%emt 0:21:51]} 42. Rb4 {[%emt 0:00:00]} Kg6 {[%emt 0:09:46]} (42... Kh6 $14) 43. a4 {[%emt 0:00:00]} Kf7 {[%emt 0:00:34]} 44. h4 {[%emt 0:00:00]} (44. Rb6 $16) 44... g5 $14 {[%emt 0:00:57]} 45. hxg5 {[%emt 0:00:00]} fxg5 {[%emt 0:00:06] The position is equal.} 46. Rb6 {[%emt 0:00:00]} h4 {[%emt 0:01:23]} 47. gxh4 {[%emt 0:00:00]} gxh4 {[%emt 0:00:06]} 48. Kg4 {[%emt 0:00:00]} Ke7 {[%emt 0:00:09]} 49. Kxh4 {[%emt 0:00:00]} Kd8 {[%emt 0:00:05]} 50. Kg5 {[%emt 0:00:00]} Kc7 {[%emt 0:00:02]} 51. Rb5 {[%emt 0:00:00]} Rf7 {[%emt 0:01:32]} 52. a5 {[%emt 0:00:00]} Rf3 {[%emt 0:00:41]} 53. b4 {[%emt 0:00:00]} Rf1 {[%emt 0:00:21]} 54. Rb6 {[%emt 0:00:00]} Rf2 {[%emt 0:00:22]} 55. Kg4 {[%emt 0:00:00] Weighted Error Value: White=0.11 (very precise) /Black=0.11 (very precise)   Mistake:       	White=2     	Black=2      Inaccurate:     	White=3     	Black=5      OK:         	White=17    	Black=10     Best:        	White=1     	Black=3} 1/2-1/2

[Event "4NCL Div 2 2024-25"]
[Site "England"]
[Date "2025.02.16"]
[Round "6.28"]
[White "Goh, Jinghan Cameron"]
[Black "Purdon, Colin"]
[Result "0-1"]
[Annotator "TA"]
[ECO "E64"]
[WhiteElo "2017"]
[BlackElo "1957"]
[PlyCount "54"]
[EventDate "2024.11.23"]
[EventType "team-tourn"]
[EventCountry "ENG"]
[SourceTitle "playchess.com"]
[Source "ChessBase"]
[SourceQuality "1"]
[TimeControl "40/6000+30:3000+30"]

{[%evp 22,54,24,33,25,31,81,-34,-16,-47,-42,-48,-39,-81,-92,-156,-143,-143,-144,-145,-77,-70,-75,-93,-61,-425,-412,-424,-418,-1005,-309,-2207,-2108,-5506,-5404]} 1. d4 {[%emt 0:10:08]} Nf6 {[%emt 0:10:11]} 2. c4 {[%emt 0:00:04]} g6 {[%emt 0:00:08]} 3. g3 {[%emt 0:00:05]} Bg7 {[%emt 0:00:17]} 4. Bg2 {[%emt 0:00:04]} O-O {[%emt 0:00:22]} 5. Nc3 {[%emt 0:00:13]} c5 {[%emt 0:01:41]} 6. d5 {[%emt 0:02:04]} d6 {[%emt 0:01:27]} 7. Nf3 {[%emt 0:00:47]} Na6 {[%emt 0:09:39]} 8. O-O {[%emt 0:01:46]} Nc7 {[%emt 0:00:12]} 9. a4 {[%emt 0:06:14]} b6 {[%emt 0:01:29][%cal Bb7b6,Bb6b5][%mdl 32]} 10. h3 {[%emt 0:01:34]} a6 {[%emt 0:01:00]} 11. e4 {[%emt 0:04:00][%cal Be2e4,Be4e5][%mdl 32]} Rb8 {[%emt 0:07:07]} 12. Re1 {[%emt 0:23:56]} b5 {[%emt 0:07:08] E64: King's Indian: Fianchetto: 6...c5 7 d5.} 13. e5 {[%emt 0:30:47]} Nfe8 {[%emt 0:02:29]} (13... Nd7 $1 $14) 14. Bf4 {[%emt 0:05:45]} (14. b3 $1 $16) 14... bxc4 $15 {[%emt 0:06:01] Black is slightly better.} 15. Qd2 {[%emt 0:00:43] White sacrificed a pawn} Rb3 $146 {[%emt 0:18:12]} ({Predecessor:} 15... Bf5 16. Bf1 Rb4 17. Ra2 Qc8 18. g4 Bd3 19. Bxd3 cxd3 20. Bg3 h5 21. gxh5 Qxh3 22. Qxd3 Qxh5 {0-1 Jirka,J (2406)-Docekal,J (2263) CZE-chT1W 1011 2010 (5.1)}) 16. Bf1 {[%emt 0:03:32]} Rb4 {[%emt 0:06:16]} 17. g4 {[%emt 0:00:20]} Bb7 {[%emt 0:05:00]} 18. Rad1 {[%emt 0:01:14]} ({White should try} 18. Be3) 18... e6 $17 {[%emt 0:02:25]} 19. Bg5 {[%emt 0:07:03]} Qd7 {[%emt 0:01:44]} 20. dxe6 {[%emt 0:03:04]} fxe6 {[%emt 0:07:42]} ({Black should play} 20... Nxe6 21. Nd5 Qxa4 22. Nxb4 Bxf3 23. exd6 cxb4 (23... Bxd1 24. Rxe6 fxe6 25. d7 $17)) 21. exd6 {[%emt 0:00:17]} Bxf3 {[%emt 0:00:31]} 22. dxc7 {[%emt 0:00:26]} Qxc7 {[%emt 0:00:25][%csl Ob2] White must now prevent ...Bd4. White has weak pawns} 23. Be2 $2 {[%emt 0:01:16][%mdl 8192] [#] Now White is beyond hope.} (23. Rxe6 $15 Bd4 (23... Bxd1 24. Nxd1 Bd4 25. Bh6 $17) 24. Be3) 23... Bd4 $1 $19 {[%emt 0:03:24] ( -> ...Qg3+)} 24. Be3 {[%emt 0:01:25] [#] and Bxf3 would now be decisive} Rxb2 $1 {[%emt 0:02:46]} 25. Qc1 {[%emt 0:02:33]} (25. Qxb2 $142 Bxe3 26. Bxf3 Qg3+ 27. Kf1 Bxf2 28. Qxf2 Rxf3 29. Ne4 Qxh3+ (29... Rxf2+ $2 30. Nxf2 Qb8 31. Rxe6 $19) 30. Kg1 Rxf2 (30... Qxg4+ $2 31. Qg2 $18) 31. Nxf2 Qg3+ 32. Kf1) 25... Bxc3 $2 {[%emt 0:04:54]} (25... Bb7 {[%cal Of8f2] ( -> ...Rxf2!)} 26. Ne4 Rxf2 (26... Bxe4 $2 27. Bxd4 cxd4 28. Qxc4 $19) 27. Bxf2 Bxf2+ (27... Bxe4 $2 {perishes.} 28. Rxd4 cxd4 29. Qxb2 $18) 28. Kxf2 Bxe4) 26. Bxf3 $2 {[%emt 0:00:13]} (26. Bxc4 Bxe1 (26... Qe5 $2 27. Bh6 $19) 27. Bxe6+ Kh8 (27... Rf7 $2 28. Rd7 $19) 28. Qxb2+ Qg7 29. Rb1) 26... Rxf3 {[%emt 0:02:19]} (26... Rb3 $2 27. Bg2 $19) 27. Qxc3 {[%emt 0:00:46] [#]} Rbxf2 $3 {[%emt 0:00:14][%mdl 512] Weighted Error Value: White=1.40/Black=0.57  Loses game:     	White=1     	---        Mistake:       	White=4     	Black=3      Inaccurate:     	White=3     	Black=1      OK:         	White=4     	Black=2      Best:        	White=1     	Black=3      Strong:       	---       	Black=2} 0-1

[Event "4NCL Div 2 2024-25"]
[Site "England"]
[Date "2025.02.16"]
[Round "6.29"]
[White "Shek, Daniel"]
[Black "Mihalik, Agoston"]
[Result "0-1"]
[Annotator "NA"]
[ECO "A28"]
[WhiteElo "1873"]
[BlackElo "2133"]
[PlyCount "140"]
[EventDate "2024.11.23"]
[EventType "team-tourn"]
[EventCountry "ENG"]
[SourceTitle "playchess.com"]
[Source "ChessBase"]
[SourceQuality "1"]
[TimeControl "40/6000+30:3000+30"]

1. c4 {[%emt 0:10:05]} e5 {[%emt 0:10:08]} 2. Nc3 {[%emt 0:00:04]} Nf6 {[%emt 0:00:22]} 3. Nf3 {[%emt 0:00:22]} Nc6 {[%emt 0:00:09]} 4. e4 {[%emt 0:00:10]} Bb4 {[%emt 0:00:10]} 5. d3 {[%emt 0:12:40]} d6 {[%emt 0:00:17]} 6. a3 {[%emt 0:02:56]} Bc5 {[%emt 0:00:29]} 7. h3 {[%emt 0:01:29]} h6 {[%emt 0:06:04]} 8. b4 {[%emt 0:02:59]} Bb6 {[%emt 0:00:08]} 9. Na4 {[%emt 0:01:22]} Bd4 {[%emt 0:21:23]} 10. Nxd4 {[%emt 0:01:30]} Nxd4 {[%emt 0:01:04]} 11. Be3 {[%emt 0:02:33]} Ne6 {[%emt 0:13:21]} 12. Be2 {[%emt 0:02:28]} O-O {[%emt 0:00:58]} 13. O-O {[%emt 0:00:38]} c6 {[%emt 0:07:51]} 14. f4 {[%emt 0:07:06]} exf4 {[%emt 0:05:32]} 15. Bxf4 {[%emt 0:00:45]} Nxf4 {[%emt 0:00:07]} 16. Rxf4 {[%emt 0:00:06]} Qe7 {[%emt 0:10:20]} 17. Qd2 {[%emt 0:03:45]} c5 {[%emt 0:05:20]} 18. bxc5 {[%emt 0:03:56]} dxc5 {[%emt 0:00:28]} 19. Qe3 {[%emt 0:00:42]} b6 {[%emt 0:01:00]} 20. Raf1 {[%emt 0:01:15]} Nd7 {[%emt 0:01:56]} 21. Nc3 {[%emt 0:03:01]} Bb7 {[%emt 0:00:40]} 22. Nd5 {[%emt 0:02:20]} Bxd5 {[%emt 0:00:11]} 23. cxd5 {[%emt 0:00:06]} Ne5 {[%emt 0:00:36]} 24. Qg3 {[%emt 0:03:05]} Rad8 {[%emt 0:05:54]} 25. Rf5 {[%emt 0:02:40]} f6 {[%emt 0:03:14]} 26. Qe3 {[%emt 0:10:23]} Kh7 {[%emt 0:00:39]} 27. g4 {[%emt 0:01:15]} g5 {[%emt 0:03:32]} 28. h4 {[%emt 0:03:37]} Ng6 {[%emt 0:00:59]} 29. hxg5 {[%emt 0:01:14]} hxg5 {[%emt 0:00:14]} 30. R1f2 {[%emt 0:03:37]} Kg7 {[%emt 0:01:50]} 31. d4 {[%emt 0:04:08]} cxd4 {[%emt 0:00:30]} 32. Qxd4 {[%emt 0:00:28]} Ne5 {[%emt 0:00:50]} 33. a4 {[%emt 0:03:54]} Kg6 {[%emt 0:01:00]} 34. Kg2 {[%emt 0:05:11]} Qd6 {[%emt 0:02:07]} 35. Rf1 {[%emt 0:03:31]} Rc8 {[%emt 0:01:47]} 36. Bd1 {[%emt 0:01:49]} Rc7 {[%emt 0:02:17]} 37. Qf2 {[%emt 0:05:47]} Rff7 {[%emt 0:02:32]} 38. Qg3 {[%emt 0:01:52]} Kg7 {[%emt 0:02:36]} 39. Qh2 {[%emt 0:03:12]} Kf8 {[%emt 0:00:47]} 40. a5 {[%emt 0:01:23]} b5 {[%emt 0:00:34]} 41. Be2 {[%emt 0:25:14]} a6 {[%emt 0:25:16]} 42. Qh3 {[%emt 0:06:22]} Ke7 {[%emt 0:01:32]} 43. Qe3 {[%emt 0:01:16]} Kd7 {[%emt 0:07:56]} 44. Qb6 {[%emt 0:02:52]} Qxb6 {[%emt 0:10:55]} 45. axb6 {[%emt 0:00:05]} Rc2 {[%emt 0:00:05]} 46. Rxe5 {[%emt 0:02:47]} Rxe2+ {[%emt 0:00:14]} 47. Kg1 {[%emt 0:00:30]} Kc8 {[%emt 0:03:13]} 48. Re6 {[%emt 0:02:01]} b4 {[%emt 0:01:38]} 49. d6 {[%emt 0:04:03]} Kb7 {[%emt 0:00:56]} 50. e5 {[%emt 0:05:02]} Kxb6 {[%emt 0:00:29]} 51. Rexf6 {[%emt 0:00:50]} Rd7 {[%emt 0:00:09]} 52. R6f5 {[%emt 0:01:45]} b3 {[%emt 0:00:22]} 53. Rb1 {[%emt 0:00:46]} b2 {[%emt 0:00:08]} 54. Rf3 {[%emt 0:02:44]} Rxe5 {[%emt 0:00:28]} 55. Rxb2+ {[%emt 0:00:09]} Rb5 {[%emt 0:00:52]} 56. Rd2 {[%emt 0:00:20]} Kc6 {[%emt 0:01:10]} 57. Kf2 {[%emt 0:01:19]} a5 {[%emt 0:01:25]} 58. Rfd3 {[%emt 0:00:25]} a4 {[%emt 0:01:47]} 59. Kg3 {[%emt 0:00:29]} Rb3 {[%emt 0:00:34]} 60. Rc2+ {[%emt 0:00:52]} Kb5 {[%emt 0:00:29]} 61. Rxb3+ {[%emt 0:00:13]} axb3 {[%emt 0:00:05]} 62. Rd2 {[%emt 0:00:09]} Kc4 {[%emt 0:00:50]} 63. Kf3 {[%emt 0:00:46]} Kc3 {[%emt 0:00:22]} 64. Ke2 {[%emt 0:00:29]} b2 {[%emt 0:00:23]} 65. Rd3+ {[%emt 0:00:51]} Kc2 {[%emt 0:00:12]} 66. Rd2+ {[%emt 0:00:15]} Kb3 {[%emt 0:00:27]} 67. Rd3+ {[%emt 0:00:41]} Ka2 {[%emt 0:00:19]} 68. Rd2 {[%emt 0:00:08]} Ka1 {[%emt 0:00:15]} 69. Rxb2 {[%emt 0:00:48]} Kxb2 {[%emt 0:00:06]} 70. Ke3 {[%emt 0:00:02]} Rxd6 {[%emt 0:00:08]} 0-1

[Event "4NCL Div 2 2024-25"]
[Site "England"]
[Date "2025.02.16"]
[Round "6.30"]
[White "Sivanandan, Bodhana"]
[Black "Duckers, Harvey L"]
[Result "1-0"]
[Annotator "TA"]
[ECO "C09"]
[WhiteElo "2082"]
[BlackElo "1900"]
[PlyCount "93"]
[EventDate "2024.11.23"]
[EventType "team-tourn"]
[EventCountry "ENG"]
[SourceTitle "playchess.com"]
[Source "ChessBase"]
[SourceQuality "1"]
[TimeControl "40/6000+30:3000+30"]

{[%evp 20,93,43,39,35,17,25,16,21,1,0,-6,0,0,19,14,34,17,85,77,86,66,102,50,42,39,94,12,15,20,33,12,20,22,16,20,47,50,51,54,68,41,40,40,40,40,56,8,8,8,22,22,12,24,22,20,20,8,118,130,141,129,132,114,332,8,285,142,715,711,702,700,686,682,854,1005]} 1. e4 {[%emt 0:10:05]} e6 {[%emt 0:11:12]} 2. d4 {[%emt 0:00:54]} d5 {[%emt 0:00:07]} 3. Nd2 {[%emt 0:00:36]} c5 {[%emt 0:00:06]} 4. exd5 {[%emt 0:00:44]} exd5 {[%emt 0:00:01]} 5. Ngf3 {[%emt 0:00:41]} Nc6 {[%emt 0:00:02]} 6. Bb5 {[%emt 0:00:37]} Bd6 {[%emt 0:00:21]} 7. O-O {[%emt 0:01:05]} Nge7 {[%emt 0:00:05]} 8. dxc5 {[%emt 0:01:11]} Bxc5 {[%emt 0:00:02]} 9. Nb3 {[%emt 0:01:25]} Bd6 {[%emt 0:00:28]} 10. h3 {[%emt 0:01:07]} O-O {[%emt 0:00:10]} 11. Re1 {[%emt 0:01:34]} Bf5 {[%emt 0:02:31] C09: French Tarrasch: 3...c5 4 exd5 exd5 5 Ngf3 Nc6.} 12. Nfd4 {[%emt 0:02:50]} Bg6 {[%emt 0:01:56]} 13. Be3 {[%emt 0:02:38]} a6 {[%emt 0:00:21] The position is equal.} 14. Bxc6 $146 {[%emt 0:01:03]} ({Predecessor:} 14. Bd3 Bxd3 15. Qxd3 Ne5 16. Qe2 Nc4 17. c3 Nxe3 18. Qxe3 Qd7 19. Rad1 Nc6 20. Nxc6 bxc6 21. Nc5 Qa7 22. Nb3 Qd7 23. Nc5 Qa7 24. Nb3 Qd7 25. Nc5 {½-½ Sankova,S (1742)-Kovarik,M (1885) Kouty nad Desnou op-A 2015 (6)}) 14... bxc6 {[%emt 0:00:15]} 15. Nf3 {[%emt 0:10:03]} Nf5 {[%emt 0:04:00]} 16. Bc5 {[%emt 0:01:06]} Bxc5 {[%emt 0:00:02]} 17. Nxc5 {[%emt 0:00:19]} Qd6 {[%emt 0:00:27]} 18. b4 {[%emt 0:02:47]} Rfb8 {[%emt 0:02:20]} (18... a5 $11 {keeps the balance.}) 19. a3 {[%emt 0:00:43] White is more active.} a5 {[%emt 0:00:02]} 20. c3 {[%emt 0:00:23]} Ra7 {[%emt 0:08:00]} 21. Rc1 {[%emt 0:03:04]} (21. g4 $16 Ne7 22. Qd4) 21... axb4 $14 {[%emt 0:00:36]} 22. axb4 {[%emt 0:00:23]} h6 {[%emt 0:03:42]} (22... h5 $14) 23. Nd4 {[%emt 0:04:39] A dynamic duo of knights.} (23. g4 $16 Ne7 24. Qd4) 23... Qf6 {[%emt 0:08:05]} 24. Ncb3 {[%emt 0:12:20]} Rc8 {[%emt 0:09:07]} 25. Nxf5 {[%emt 0:02:05]} (25. Qf3 {simplifies} Nxd4 26. Qxf6 gxf6 27. Nxd4 c5 28. bxc5 Rxc5 29. Rcd1) 25... Bxf5 {[%emt 0:01:33]} 26. Qf3 {[%emt 0:00:40]} Qg6 {[%emt 0:02:15]} 27. Ra1 {[%emt 0:03:43]} Be4 {[%emt 0:05:06]} 28. Qg4 {[%emt 0:01:06]} Rca8 {[%emt 0:05:16]} 29. Qxg6 {[%emt 0:02:04]} fxg6 {[%emt 0:07:29]} 30. f3 {[%emt 0:01:10]} Rxa1 {[%emt 0:01:35]} 31. Rxa1 {[%emt 0:00:10]} Rxa1+ {[%emt 0:00:05]} 32. Nxa1 {[%emt 0:00:09][%mdl 4096] Endgame KB-KN} Bf5 {[%emt 0:01:44]} 33. h4 {[%emt 0:00:08]} (33. Nb3 $14) 33... Kf7 $11 {[%emt 0:00:05]} 34. Kf2 {[%emt 0:00:15]} Ke7 {[%emt 0:00:04]} 35. Ke3 {[%emt 0:00:32]} g5 {[%emt 0:00:34]} 36. hxg5 {[%emt 0:00:12]} hxg5 {[%emt 0:00:02]} 37. Nb3 {[%emt 0:01:11]} Kd6 {[%emt 0:00:13]} 38. Kd4 {[%emt 0:00:54]} Bc2 {[%emt 0:09:20]} (38... Bc8 $11) 39. Nd2 $1 $16 {[%emt 0:00:34]} Bd1 {[%emt 0:01:33] [#]} 40. Nf1 $1 {[%emt 0:00:23]} Ke6 {[%emt 0:14:44]} 41. Ne3 {[%emt 0:51:43]} Be2 {[%emt 0:50:31]} (41... Ba4 $16 42. Kc5 Ke5) 42. Nc2 $2 {[%emt 0:00:53]} (42. Kc5 $18) 42... Bf1 $2 {[%emt 0:00:15][%mdl 8192] [#]} (42... Bd1 $11 {and Black has nothing to worry.} 43. Ne3 Ba4) 43. g3 {[%emt 0:00:18]} (43. Kc5 $1 $18 {[%cal Rc5c6] is the precise move to win.}) 43... Be2 $2 {[%emt 0:00:54][%mdl 8192]} (43... Kd6 $16 44. Ne3 Bh3) 44. Kc5 $18 {[%emt 0:01:33] Strongly threatening Nd4+. White is clearly winning.} Bd1 {[%emt 0:04:37]} 45. Nd4+ {[%emt 0:00:10]} Kd7 {[%emt 0:00:05]} 46. Nxc6 {[%emt 0:00:08]} Kc7 {[%emt 0:00:20]} 47. Nd4 {[%emt 0:00:09] Weighted Error Value: White=0.30/Black=0.56  Loses game:     	---       	Black=3      Missed win:     	White=1     	---        Mistake:       	White=4     	Black=3      Inaccurate:     	White=1     	Black=2      OK:         	White=5     	Black=9      Best:        	White=2     	---        Strong:       	White=2     	---} (47. Kxd5 $2 {loses.} Bxf3+ 48. Ke6 Kxc6 $19) 1-0